[Event "Titled Tuesday Blitz May 23 Late 2023"]
[White "Sariego Figueredo, Wilfredo"]
[Black "Potapova, Margarita"]
[WhiteFideId "3500080"]
[BlackFideId "14126869"]
[WhiteElo "2309"]
[BlackElo "2244"]
[Result "0-1"]
[Round "01"]
[TimeControl "180+2"]
[Date "2023.05.23"]
[WhiteClock "0:00:04"]
[BlackClock "0:00:31"]

1. d4 {[%clk 0:02:59]}  Nf6 {[%clk 0:02:57]} 2. Bf4 {[%clk 0:02:59]}  g6 {[%clk 0:02:55]} 3. Nc3 {[%clk 0:02:59]}  Bg7 {[%clk 0:02:30]} 4. e4 {[%clk 0:02:58]}  d5 {[%clk 0:02:26]} 5. e5 {[%clk 0:02:47]}  Ne4 {[%clk 0:02:26]} 6. Nxe4 {[%clk 0:02:46]}  dxe4 {[%clk 0:02:27]} 7. c3 {[%clk 0:02:41]}  O-O {[%clk 0:02:26]} 8. Bc4 {[%clk 0:02:35]}  c5 {[%clk 0:02:22]} 9. Ne2 {[%clk 0:02:32]}  cxd4 {[%clk 0:02:16]} 10. Qxd4 {[%clk 0:02:33]}  Qc7 {[%clk 0:01:33]} 11. Rd1 {[%clk 0:02:16]}  Bf5 {[%clk 0:01:29]} 12. e6 {[%clk 0:02:03]}  Qa5 {[%clk 0:01:08]} 13. exf7+ {[%clk 0:02:02]}  Kh8 {[%clk 0:01:08]} 14. Qd5 {[%clk 0:01:51]}  Qb6 {[%clk 0:01:02]} 15. Be5 {[%clk 0:01:46]}  Nc6 {[%clk 0:00:57]} 16. Bxg7+ {[%clk 0:01:37]}  Kxg7 {[%clk 0:00:58]} 17. Ng3 {[%clk 0:01:27]}  e6 {[%clk 0:00:51]} 18. Nxf5+ {[%clk 0:01:24]}  exf5 {[%clk 0:00:43]} 19. Qb5 {[%clk 0:01:11]}  Qxb5 {[%clk 0:00:41]} 20. Bxb5 {[%clk 0:01:12]}  Rxf7 {[%clk 0:00:42]} 21. O-O {[%clk 0:01:04]}  Ne5 {[%clk 0:00:41]} 22. Rd5 {[%clk 0:00:55]}  Re7 {[%clk 0:00:40]} 23. Rfd1 {[%clk 0:00:52]}  a6 {[%clk 0:00:39]} 24. Be2 {[%clk 0:00:34]}  Rc8 {[%clk 0:00:38]} 25. R1d4 {[%clk 0:00:25]}  Nc6 {[%clk 0:00:34]} 26. Rd1 {[%clk 0:00:19]}  Rcc7 {[%clk 0:00:33]} 27. a3 {[%clk 0:00:13]}  h6 {[%clk 0:00:31]} 28. f3 {[%clk 0:00:11]}  e3 {[%clk 0:00:29]} 29. R1d3 {[%clk 0:00:09]}  f4 {[%clk 0:00:30]} 30. g3 {[%clk 0:00:08]}  g5 {[%clk 0:00:28]} 31. Kg2 {[%clk 0:00:07]}  Ne5 {[%clk 0:00:28]} 32. R3d4 {[%clk 0:00:05]}  Ng6 {[%clk 0:00:29]} 33. gxf4 {[%clk 0:00:03]}  Nxf4+ {[%clk 0:00:29]} 34. Rxf4 {[%clk 0:00:02]}  gxf4 {[%clk 0:00:30]} 35. Kf1 {[%clk 0:00:02]}  Rcd7 {[%clk 0:00:30]} 36. Rd4 {[%clk 0:00:02]}  Rxd4 {[%clk 0:00:30]} 37. cxd4 {[%clk 0:00:03]}  Rd7 {[%clk 0:00:31]} 38. Bc4 {[%clk 0:00:03]}  Rxd4 {[%clk 0:00:31]} 39. Be6 {[%clk 0:00:03]}  Rd2 {[%clk 0:00:32]} 40. Ke1 {[%clk 0:00:03]}  Rxh2 {[%clk 0:00:32]} 41. Bg4 {[%clk 0:00:04]}  Rxb2 {[%clk 0:00:32]} 42. a4 {[%clk 0:00:04]}  a5 {[%clk 0:00:31]} 0-1


[Site "https://www.chess.com"]

[Event "Titled Tuesday Blitz May 23 Late 2023"]
[White "ATM622"]
[Black "Chlpik, Martin"]
[BlackFideId "14923351"]
[WhiteElo "2552"]
[BlackElo "2109"]
[Result "1-0"]
[Round "01"]
[TimeControl "180+2"]
[Date "2023.05.23"]
[WhiteClock "0:01:18"]
[BlackClock "0:00:00"]

1. d4 {[%clk 0:03:00]}  Nf6 {[%clk 0:02:57]} 2. c4 {[%clk 0:03:00]}  e6 {[%clk 0:02:55]} 3. g3 {[%clk 0:03:00]}  c5 {[%clk 0:02:53]} 4. d5 {[%clk 0:03:00]}  exd5 {[%clk 0:02:54]} 5. cxd5 {[%clk 0:03:00]}  d6 {[%clk 0:02:54]} 6. Bg2 {[%clk 0:02:59]}  g6 {[%clk 0:02:55]} 7. Nf3 {[%clk 0:02:59]}  Bg7 {[%clk 0:02:56]} 8. O-O {[%clk 0:02:58]}  O-O {[%clk 0:02:56]} 9. Nc3 {[%clk 0:02:55]}  a6 {[%clk 0:02:57]} 10. a4 {[%clk 0:02:55]}  Re8 {[%clk 0:02:57]} 11. a5 {[%clk 0:02:53]}  Nbd7 {[%clk 0:02:57]} 12. Bf4 {[%clk 0:02:51]}  Qe7 {[%clk 0:02:57]} 13. Nd2 {[%clk 0:02:49]}  Nh5 {[%clk 0:02:57]} 14. Be3 {[%clk 0:02:46]}  Ne5 {[%clk 0:02:56]} 15. Qc2 {[%clk 0:02:36]}  Ng4 {[%clk 0:02:53]} 16. Nc4 {[%clk 0:02:33]}  Bf5 {[%clk 0:02:48]} 17. Qb3 {[%clk 0:02:27]}  Bd4 {[%clk 0:02:34]} 18. Bxd4 {[%clk 0:02:21]}  cxd4 {[%clk 0:02:35]} 19. Na4 {[%clk 0:02:21]}  Qxe2 {[%clk 0:02:32]} 20. Nxd6 {[%clk 0:02:19]}  Bc2 {[%clk 0:02:24]} 21. Qxb7 {[%clk 0:02:14]}  Qe7 {[%clk 0:01:17]} 22. Qxe7 {[%clk 0:02:12]}  Rxe7 {[%clk 0:01:18]} 23. h3 {[%clk 0:02:04]}  Ne5 {[%clk 0:01:10]} 24. Ne4 {[%clk 0:01:52]}  Nc4 {[%clk 0:00:53]} 25. d6 {[%clk 0:01:50]}  Rxe4 {[%clk 0:00:50]} 26. Bxe4 {[%clk 0:01:49]}  Bxe4 {[%clk 0:00:51]} 27. Rfd1 {[%clk 0:01:45]}  d3 {[%clk 0:00:50]} 28. Nc5 {[%clk 0:01:40]}  Nxd6 {[%clk 0:00:44]} 29. Nxe4 {[%clk 0:01:40]}  Nxe4 {[%clk 0:00:45]} 30. Rxd3 {[%clk 0:01:40]}  Rb8 {[%clk 0:00:40]} 31. Rd4 {[%clk 0:01:38]}  f5 {[%clk 0:00:38]} 32. b4 {[%clk 0:01:36]}  Nhf6 {[%clk 0:00:36]} 33. Rc1 {[%clk 0:01:34]}  Rb5 {[%clk 0:00:23]} 34. Kg2 {[%clk 0:01:28]}  Nd5 {[%clk 0:00:23]} 35. Rc6 {[%clk 0:01:20]}  Nxb4 {[%clk 0:00:20]} 36. Rb6 {[%clk 0:01:20]}  Rxb6 {[%clk 0:00:03]} 37. axb6 {[%clk 0:01:20]}  Nc5 {[%clk 0:00:00]} 38. Rxb4 {[%clk 0:01:18]} 1-0


[Site "https://www.chess.com"]

[Event "Titled Tuesday Blitz May 23 Late 2023"]
[White "OPQRC"]
[Black "Kev4444444444"]
[WhiteElo "2544"]
[BlackElo "2160"]
[Result "1-0"]
[Round "01"]
[TimeControl "180+2"]
[Date "2023.05.23"]
[WhiteClock "0:01:21"]
[BlackClock "0:00:14"]

1. e4 {[%clk 0:02:54]}  c5 {[%clk 0:02:54]} 2. Nf3 {[%clk 0:02:53]}  d6 {[%clk 0:02:53]} 3. d4 {[%clk 0:02:51]}  cxd4 {[%clk 0:02:54]} 4. Nxd4 {[%clk 0:02:52]}  Nf6 {[%clk 0:02:55]} 5. Nc3 {[%clk 0:02:50]}  g6 {[%clk 0:02:54]} 6. Be3 {[%clk 0:02:50]}  Bg7 {[%clk 0:02:54]} 7. f3 {[%clk 0:02:50]}  O-O {[%clk 0:02:54]} 8. Qd2 {[%clk 0:02:50]}  Nc6 {[%clk 0:02:54]} 9. O-O-O {[%clk 0:02:49]}  Bd7 {[%clk 0:02:48]} 10. h4 {[%clk 0:02:48]}  Rc8 {[%clk 0:02:41]} 11. h5 {[%clk 0:02:48]}  gxh5 {[%clk 0:02:38]} 12. g4 {[%clk 0:02:47]}  hxg4 {[%clk 0:02:34]} 13. Bh6 {[%clk 0:02:43]}  Nxd4 {[%clk 0:02:02]} 14. Bxg7 {[%clk 0:02:34]}  Kxg7 {[%clk 0:01:45]} 15. Qh6+ {[%clk 0:02:18]}  Kh8 {[%clk 0:01:45]} 16. Rxd4 {[%clk 0:02:17]}  Qa5 {[%clk 0:01:08]} 17. Rd5 {[%clk 0:01:56]}  Qb6 {[%clk 0:00:53]} 18. e5 {[%clk 0:01:44]}  Rxc3 {[%clk 0:00:43]} 19. bxc3 {[%clk 0:01:24]}  dxe5 {[%clk 0:00:37]} 20. Rxd7 {[%clk 0:01:24]}  Qe6 {[%clk 0:00:21]} 21. Qxf8+ {[%clk 0:01:23]}  Ng8 {[%clk 0:00:19]} 22. Rd8 {[%clk 0:01:22]}  f6 {[%clk 0:00:14]} 23. Bd3 {[%clk 0:01:21]} 1-0


[Site "https://www.chess.com"]

[Event "Titled Tuesday Blitz May 23 Late 2023"]
[White "ritanovikova"]
[Black "Plotnikov, Pavel"]
[BlackFideId "4170342"]
[WhiteElo "2155"]
[BlackElo "2298"]
[Result "0-1"]
[Round "01"]
[TimeControl "180+2"]
[Date "2023.05.23"]
[WhiteClock "0:00:00"]
[BlackClock "0:00:28"]

1. e4 {[%clk 0:02:58]}  e6 {[%clk 0:03:00]} 2. d4 {[%clk 0:02:58]}  d5 {[%clk 0:03:00]} 3. exd5 {[%clk 0:02:59]}  exd5 {[%clk 0:03:00]} 4. Bd3 {[%clk 0:02:59]}  Nf6 {[%clk 0:02:59]} 5. Nf3 {[%clk 0:02:59]}  Be7 {[%clk 0:02:59]} 6. O-O {[%clk 0:03:00]}  O-O {[%clk 0:03:00]} 7. Ne5 {[%clk 0:02:59]}  b6 {[%clk 0:02:53]} 8. c3 {[%clk 0:02:58]}  c5 {[%clk 0:02:53]} 9. dxc5 {[%clk 0:02:52]}  bxc5 {[%clk 0:02:52]} 10. Bg5 {[%clk 0:02:49]}  Bb7 {[%clk 0:02:51]} 11. Nd2 {[%clk 0:02:48]}  h6 {[%clk 0:02:50]} 12. Bh4 {[%clk 0:02:47]}  Nbd7 {[%clk 0:02:50]} 13. Ndf3 {[%clk 0:02:47]}  Ne4 {[%clk 0:02:43]} 14. Bxe7 {[%clk 0:02:26]}  Qxe7 {[%clk 0:02:42]} 15. Nxd7 {[%clk 0:02:26]}  Rfe8 {[%clk 0:02:35]} 16. Nde5 {[%clk 0:02:16]}  Rad8 {[%clk 0:02:28]} 17. Ng4 {[%clk 0:02:06]}  f5 {[%clk 0:02:27]} 18. Ne3 {[%clk 0:02:05]}  f4 {[%clk 0:02:27]} 19. Nc2 {[%clk 0:01:53]}  g5 {[%clk 0:02:21]} 20. Re1 {[%clk 0:01:43]}  g4 {[%clk 0:02:21]} 21. Nd2 {[%clk 0:01:43]}  Qg5 {[%clk 0:02:18]} 22. f3 {[%clk 0:01:35]}  Nf6 {[%clk 0:01:56]} 23. fxg4 {[%clk 0:01:27]}  Nxg4 {[%clk 0:01:50]} 24. Nf3 {[%clk 0:01:21]}  Qg7 {[%clk 0:01:48]} 25. Qd2 {[%clk 0:01:18]}  d4 {[%clk 0:01:34]} 26. Kh1 {[%clk 0:01:14]}  Ne3 {[%clk 0:01:31]} 27. Nxe3 {[%clk 0:01:11]}  dxe3 {[%clk 0:01:17]} 28. Bc4+ {[%clk 0:01:10]}  Kh8 {[%clk 0:01:16]} 29. Qe2 {[%clk 0:01:10]}  Rd6 {[%clk 0:01:06]} 30. Rad1 {[%clk 0:01:09]}  Rg6 {[%clk 0:01:06]} 31. Bd5 {[%clk 0:01:04]}  Bc8 {[%clk 0:01:01]} 32. Rg1 {[%clk 0:00:55]}  h5 {[%clk 0:00:52]} 33. Nh4 {[%clk 0:00:51]}  Rg4 {[%clk 0:00:52]} 34. Nf3 {[%clk 0:00:49]}  Bf5 {[%clk 0:00:48]} 35. Bb3 {[%clk 0:00:45]}  Be4 {[%clk 0:00:42]} 36. Bc2 {[%clk 0:00:44]}  Ba8 {[%clk 0:00:40]} 37. Rd6 {[%clk 0:00:36]}  h4 {[%clk 0:00:37]} 38. h3 {[%clk 0:00:35]}  Rg3 {[%clk 0:00:38]} 39. Rgd1 {[%clk 0:00:34]}  Bxf3 {[%clk 0:00:32]} 40. Qd3 {[%clk 0:00:12]}  Bxg2+ {[%clk 0:00:29]} 41. Kh2 {[%clk 0:00:00]}  Rxh3+ {[%clk 0:00:28]} 0-1


[Site "https://www.chess.com"]

[Event "Titled Tuesday Blitz May 23 Late 2023"]
[White "Baghdasaryan, Vahe"]
[Black "Cagara, Paulina"]
[WhiteFideId "13303139"]
[BlackFideId "1124870"]
[WhiteElo "2216"]
[BlackElo "1967"]
[Result "0-1"]
[Round "01"]
[TimeControl "180+2"]
[Date "2023.05.23"]
[WhiteClock "0:00:00"]
[BlackClock "0:00:10"]

1. e4 {[%clk 0:02:59]}  c6 {[%clk 0:02:59]} 2. d4 {[%clk 0:02:59]}  d5 {[%clk 0:02:59]} 3. e5 {[%clk 0:02:51]}  c5 {[%clk 0:02:59]} 4. dxc5 {[%clk 0:02:50]}  e6 {[%clk 0:02:58]} 5. Bf4 {[%clk 0:02:38]}  Bxc5 {[%clk 0:02:57]} 6. c3 {[%clk 0:02:31]}  Nc6 {[%clk 0:02:56]} 7. Qg4 {[%clk 0:02:27]}  Bf8 {[%clk 0:02:55]} 8. Nf3 {[%clk 0:02:25]}  h5 {[%clk 0:02:54]} 9. Qg3 {[%clk 0:02:24]}  g6 {[%clk 0:02:53]} 10. Bd3 {[%clk 0:02:24]}  Nge7 {[%clk 0:02:50]} 11. Bg5 {[%clk 0:02:24]}  Qb6 {[%clk 0:02:43]} 12. O-O {[%clk 0:02:18]}  Bd7 {[%clk 0:02:30]} 13. Bf6 {[%clk 0:02:17]}  Rg8 {[%clk 0:02:29]} 14. Na3 {[%clk 0:01:58]}  a6 {[%clk 0:02:18]} 15. Ng5 {[%clk 0:01:55]}  Qxb2 {[%clk 0:02:10]} 16. c4 {[%clk 0:01:44]}  Qxa3 {[%clk 0:02:04]} 17. Nxf7 {[%clk 0:01:44]}  Kxf7 {[%clk 0:01:44]} 18. Rab1 {[%clk 0:01:43]}  Nf5 {[%clk 0:01:39]} 19. Qh3 {[%clk 0:01:30]}  Rb8 {[%clk 0:01:28]} 20. cxd5 {[%clk 0:01:24]}  exd5 {[%clk 0:01:25]} 21. Rfe1 {[%clk 0:01:24]}  Be6 {[%clk 0:01:20]} 22. g4 {[%clk 0:01:21]}  Nfd4 {[%clk 0:01:10]} 23. Re3 {[%clk 0:01:03]}  Qxa2 {[%clk 0:01:05]} 24. Qh4 {[%clk 0:00:50]}  Bh6 {[%clk 0:00:45]} 25. Bh8 {[%clk 0:00:41]}  Rxh8 {[%clk 0:00:26]} 26. Qf6+ {[%clk 0:00:40]}  Ke8 {[%clk 0:00:25]} 27. Bxg6+ {[%clk 0:00:37]}  Kd7 {[%clk 0:00:25]} 28. Rxb7+ {[%clk 0:00:21]}  Rxb7 {[%clk 0:00:25]} 29. Qxh8 {[%clk 0:00:21]}  Bxe3 {[%clk 0:00:16]} 30. Qg7+ {[%clk 0:00:10]}  Ne7 {[%clk 0:00:16]} 31. fxe3 {[%clk 0:00:08]}  Nf3+ {[%clk 0:00:16]} 32. Kf1 {[%clk 0:00:08]}  Rb1+ {[%clk 0:00:15]} 33. Bxb1 {[%clk 0:00:07]}  Qxb1+ {[%clk 0:00:16]} 34. Kf2 {[%clk 0:00:08]}  Nh4 {[%clk 0:00:14]} 35. gxh5 {[%clk 0:00:08]}  Qc2+ {[%clk 0:00:13]} 36. Kf1 {[%clk 0:00:02]}  Qd3+ {[%clk 0:00:12]} 37. Kf2 {[%clk 0:00:00]}  Qd2+ {[%clk 0:00:10]} 0-1


[Site "https://www.chess.com"]

[Event "Titled Tuesday Blitz May 23 Late 2023"]
[White "Matute Escobar, Roxanny"]
[Black "Kubicka, Anna"]
[WhiteFideId "3926028"]
[BlackFideId "1152254"]
[WhiteElo "1844"]
[BlackElo "2144"]
[Result "1-0"]
[Round "01"]
[TimeControl "180+2"]
[Date "2023.05.23"]
[WhiteClock "0:00:14"]
[BlackClock "0:00:00"]

1. e4 {[%clk 0:02:59]}  c5 {[%clk 0:02:59]} 2. Nf3 {[%clk 0:02:59]}  d6 {[%clk 0:02:59]} 3. d4 {[%clk 0:02:59]}  cxd4 {[%clk 0:03:00]} 4. Nxd4 {[%clk 0:02:59]}  Nf6 {[%clk 0:03:01]} 5. Nc3 {[%clk 0:03:00]}  a6 {[%clk 0:02:58]} 6. Be3 {[%clk 0:02:57]}  e5 {[%clk 0:02:58]} 7. Nb3 {[%clk 0:02:57]}  Be7 {[%clk 0:02:58]} 8. f3 {[%clk 0:02:57]}  O-O {[%clk 0:02:59]} 9. Qd2 {[%clk 0:02:58]}  Be6 {[%clk 0:02:59]} 10. O-O-O {[%clk 0:02:57]}  Nbd7 {[%clk 0:02:57]} 11. Kb1 {[%clk 0:02:57]}  b5 {[%clk 0:02:58]} 12. g4 {[%clk 0:02:57]}  b4 {[%clk 0:02:58]} 13. Ne2 {[%clk 0:02:56]}  a5 {[%clk 0:02:58]} 14. g5 {[%clk 0:02:53]}  Ne8 {[%clk 0:02:58]} 15. h4 {[%clk 0:02:50]}  a4 {[%clk 0:02:58]} 16. Nbc1 {[%clk 0:02:50]}  b3 {[%clk 0:02:58]} 17. cxb3 {[%clk 0:02:47]}  axb3 {[%clk 0:02:59]} 18. a3 {[%clk 0:02:48]}  Nc7 {[%clk 0:02:45]} 19. Nc3 {[%clk 0:02:42]}  Na6 {[%clk 0:02:39]} 20. h5 {[%clk 0:02:38]}  Nb6 {[%clk 0:02:02]} 21. g6 {[%clk 0:02:33]}  Nc4 {[%clk 0:01:56]} 22. Bxc4 {[%clk 0:02:32]}  Bxc4 {[%clk 0:01:57]} 23. h6 {[%clk 0:02:25]}  fxg6 {[%clk 0:01:53]} 24. hxg7 {[%clk 0:02:23]}  Rf7 {[%clk 0:01:53]} 25. Nd5 {[%clk 0:01:25]}  Bxd5 {[%clk 0:01:49]} 26. Qxd5 {[%clk 0:01:26]}  Nc7 {[%clk 0:01:37]} 27. Qxb3 {[%clk 0:01:22]}  Rb8 {[%clk 0:01:36]} 28. Qc2 {[%clk 0:01:04]}  Nb5 {[%clk 0:01:33]} 29. Ka1 {[%clk 0:01:01]}  Kxg7 {[%clk 0:01:33]} 30. Nd3 {[%clk 0:00:55]}  Bg5 {[%clk 0:01:26]} 31. Bxg5 {[%clk 0:00:45]}  Qxg5 {[%clk 0:01:27]} 32. Nb4 {[%clk 0:00:45]}  Nd4 {[%clk 0:01:18]} 33. Qc3 {[%clk 0:00:31]}  Rxb4 {[%clk 0:01:06]} 34. axb4 {[%clk 0:00:27]}  Rxf3 {[%clk 0:00:49]} 35. Qc7+ {[%clk 0:00:27]}  Rf7 {[%clk 0:00:49]} 36. Qxd6 {[%clk 0:00:26]}  Rf6 {[%clk 0:00:13]} 37. Qe7+ {[%clk 0:00:24]}  Kg8 {[%clk 0:00:12]} 38. Qxh7+ {[%clk 0:00:23]}  Kf8 {[%clk 0:00:12]} 39. Qh8+ {[%clk 0:00:22]}  Ke7 {[%clk 0:00:12]} 40. Rh7+ {[%clk 0:00:23]}  Rf7 {[%clk 0:00:10]} 41. Rxf7+ {[%clk 0:00:22]}  Kxf7 {[%clk 0:00:11]} 42. Qh7+ {[%clk 0:00:21]}  Ke6 {[%clk 0:00:10]} 43. Qg8+ {[%clk 0:00:21]}  Ke7 {[%clk 0:00:09]} 44. Rf1 {[%clk 0:00:16]}  Nf3 {[%clk 0:00:03]} 45. Rxf3 {[%clk 0:00:13]}  Qg1+ {[%clk 0:00:04]} 46. Ka2 {[%clk 0:00:14]}  Qa7+ {[%clk 0:00:00]} 47. Kb3 {[%clk 0:00:14]} 1-0


[Site "https://www.chess.com"]

[Event "Titled Tuesday Blitz May 23 Late 2023"]
[White "Lonoff, Marc"]
[Black "Huber, Benedikt"]
[WhiteFideId "2001349"]
[BlackFideId "12923583"]
[WhiteElo "2111"]
[BlackElo "2215"]
[Result "1/2-1/2"]
[Round "01"]
[TimeControl "180+2"]
[Date "2023.05.23"]
[WhiteClock "0:00:40"]
[BlackClock "0:00:13"]

1. c4 {[%clk 0:02:59]}  f5 {[%clk 0:02:54]} 2. Nc3 {[%clk 0:02:57]}  Nf6 {[%clk 0:02:54]} 3. g3 {[%clk 0:02:57]}  e5 {[%clk 0:02:53]} 4. Bg2 {[%clk 0:02:55]}  Be7 {[%clk 0:02:54]} 5. e4 {[%clk 0:02:55]}  d6 {[%clk 0:02:53]} 6. d3 {[%clk 0:02:55]}  O-O {[%clk 0:02:52]} 7. exf5 {[%clk 0:02:55]}  Nc6 {[%clk 0:02:50]} 8. g4 {[%clk 0:02:53]}  Nd4 {[%clk 0:02:32]} 9. Be3 {[%clk 0:02:44]}  c6 {[%clk 0:02:29]} 10. Bxd4 {[%clk 0:02:23]}  exd4 {[%clk 0:02:29]} 11. Ne4 {[%clk 0:02:22]}  Qa5+ {[%clk 0:02:18]} 12. Kf1 {[%clk 0:02:15]}  Nd7 {[%clk 0:01:37]} 13. Qd2 {[%clk 0:02:09]}  Qxd2 {[%clk 0:01:34]} 14. Nxd2 {[%clk 0:02:08]}  Ne5 {[%clk 0:01:35]} 15. Re1 {[%clk 0:02:05]}  Bd8 {[%clk 0:01:13]} 16. Rxe5 {[%clk 0:01:59]}  dxe5 {[%clk 0:01:13]} 17. Ne4 {[%clk 0:01:59]}  g6 {[%clk 0:01:08]} 18. fxg6 {[%clk 0:01:51]}  hxg6 {[%clk 0:01:09]} 19. h3 {[%clk 0:01:44]}  Be7 {[%clk 0:01:05]} 20. Nf3 {[%clk 0:01:43]}  Bf6 {[%clk 0:01:01]} 21. Ke2 {[%clk 0:01:39]}  Be6 {[%clk 0:00:57]} 22. b3 {[%clk 0:01:33]}  Rae8 {[%clk 0:00:54]} 23. Nc5 {[%clk 0:01:17]}  Bc8 {[%clk 0:00:54]} 24. Ne4 {[%clk 0:01:15]}  Bg7 {[%clk 0:00:54]} 25. Nd6 {[%clk 0:01:13]}  Rd8 {[%clk 0:00:48]} 26. Nxc8 {[%clk 0:01:12]}  Rxc8 {[%clk 0:00:49]} 27. Ng5 {[%clk 0:01:12]}  Rf4 {[%clk 0:00:32]} 28. Be4 {[%clk 0:01:01]}  Rcf8 {[%clk 0:00:26]} 29. f3 {[%clk 0:00:57]}  R4f6 {[%clk 0:00:22]} 30. h4 {[%clk 0:00:53]}  a5 {[%clk 0:00:21]} 31. h5 {[%clk 0:00:50]}  gxh5 {[%clk 0:00:22]} 32. Nh7 {[%clk 0:00:48]}  hxg4 {[%clk 0:00:19]} 33. Nxf6+ {[%clk 0:00:48]}  Rxf6 {[%clk 0:00:19]} 34. fxg4 {[%clk 0:00:48]}  Bh6 {[%clk 0:00:17]} 35. Bf5 {[%clk 0:00:46]}  Be3 {[%clk 0:00:16]} 36. Kf3 {[%clk 0:00:46]}  Rf7 {[%clk 0:00:16]} 37. Ke4 {[%clk 0:00:40]}  Re7 {[%clk 0:00:13]} 1/2-1/2


[Site "https://www.chess.com"]

[Event "Titled Tuesday Blitz May 23 Late 2023"]
[White "Osiecki, Stanislaw"]
[Black "Osmak, Yuliia"]
[WhiteFideId "1102990"]
[BlackFideId "14101602"]
[WhiteElo "2088"]
[BlackElo "2303"]
[Result "0-1"]
[Round "01"]
[TimeControl "180+2"]
[Date "2023.05.23"]
[WhiteClock "0:00:00"]
[BlackClock "0:00:39"]

1. e4 {[%clk 0:02:59]}  c5 {[%clk 0:02:58]} 2. c3 {[%clk 0:02:53]}  d5 {[%clk 0:02:57]} 3. e5 {[%clk 0:02:52]}  Nc6 {[%clk 0:02:54]} 4. d4 {[%clk 0:02:52]}  Bf5 {[%clk 0:02:54]} 5. Bd3 {[%clk 0:02:52]}  Bxd3 {[%clk 0:02:52]} 6. Qxd3 {[%clk 0:02:51]}  e6 {[%clk 0:02:52]} 7. Ne2 {[%clk 0:02:51]}  Nge7 {[%clk 0:02:48]} 8. O-O {[%clk 0:02:51]}  Nf5 {[%clk 0:02:45]} 9. Ng3 {[%clk 0:02:51]}  g6 {[%clk 0:02:36]} 10. Nxf5 {[%clk 0:02:50]}  gxf5 {[%clk 0:02:37]} 11. Nd2 {[%clk 0:02:50]}  Bh6 {[%clk 0:02:31]} 12. Nf3 {[%clk 0:02:48]}  c4 {[%clk 0:02:27]} 13. Qc2 {[%clk 0:02:45]}  Bxc1 {[%clk 0:02:25]} 14. Raxc1 {[%clk 0:02:44]}  b5 {[%clk 0:02:25]} 15. a3 {[%clk 0:02:37]}  Kd7 {[%clk 0:02:24]} 16. b3 {[%clk 0:02:32]}  Qa5 {[%clk 0:02:17]} 17. bxc4 {[%clk 0:02:30]}  bxc4 {[%clk 0:02:18]} 18. Rb1 {[%clk 0:02:25]}  Rab8 {[%clk 0:02:16]} 19. Rxb8 {[%clk 0:02:24]}  Rxb8 {[%clk 0:02:16]} 20. Rb1 {[%clk 0:02:19]}  Qa4 {[%clk 0:02:15]} 21. Qc1 {[%clk 0:01:44]}  Qxa3 {[%clk 0:02:14]} 22. Qe1 {[%clk 0:01:36]}  Rxb1 {[%clk 0:02:03]} 23. Qxb1 {[%clk 0:01:35]}  Qb3 {[%clk 0:02:04]} 24. Qc1 {[%clk 0:01:24]}  a5 {[%clk 0:02:01]} 25. h4 {[%clk 0:01:22]}  a4 {[%clk 0:02:00]} 26. Nd2 {[%clk 0:01:17]}  Qa2 {[%clk 0:01:54]} 27. Nb1 {[%clk 0:01:15]}  Qa1 {[%clk 0:01:50]} 28. Kh2 {[%clk 0:01:09]}  Na5 {[%clk 0:01:28]} 29. Qa3 {[%clk 0:01:00]}  Qxa3 {[%clk 0:01:27]} 30. Nxa3 {[%clk 0:01:00]}  Nc6 {[%clk 0:01:20]} 31. Kg3 {[%clk 0:00:58]}  Kc7 {[%clk 0:01:19]} 32. Kf4 {[%clk 0:00:57]}  Kb6 {[%clk 0:01:13]} 33. Kg5 {[%clk 0:00:57]}  Na7 {[%clk 0:01:13]} 34. Kh6 {[%clk 0:00:57]}  Nb5 {[%clk 0:01:14]} 35. Nb1 {[%clk 0:00:55]}  a3 {[%clk 0:01:14]} 36. Nxa3 {[%clk 0:00:53]}  Nxa3 {[%clk 0:01:15]} 37. Kxh7 {[%clk 0:00:52]}  Nb5 {[%clk 0:01:11]} 38. h5 {[%clk 0:00:53]}  Nxc3 {[%clk 0:01:12]} 39. Kg7 {[%clk 0:00:46]}  Ne4 {[%clk 0:01:12]} 40. f4 {[%clk 0:00:31]}  c3 {[%clk 0:01:07]} 41. h6 {[%clk 0:00:31]}  c2 {[%clk 0:01:07]} 42. h7 {[%clk 0:00:31]}  c1=Q {[%clk 0:01:07]} 43. h8=Q {[%clk 0:00:32]}  Qxf4 {[%clk 0:01:00]} 44. Qb8+ {[%clk 0:00:28]}  Ka5 {[%clk 0:00:59]} 45. Qc7+ {[%clk 0:00:21]}  Kb4 {[%clk 0:00:58]} 46. Kxf7 {[%clk 0:00:19]}  Qh6 {[%clk 0:00:48]} 47. Qb6+ {[%clk 0:00:13]}  Kc4 {[%clk 0:00:46]} 48. Qc7+ {[%clk 0:00:04]}  Kxd4 {[%clk 0:00:42]} 49. Qb6+ {[%clk 0:00:00]}  Kxe5 {[%clk 0:00:39]} 0-1


[Site "https://www.chess.com"]

[Event "Titled Tuesday Blitz May 23 Late 2023"]
[White "Guerra Tulcan, Lenin"]
[Black "Essa, Naseem Ahmed"]
[WhiteFideId "3601382"]
[BlackFideId "14316560"]
[WhiteElo "2368"]
[BlackElo "1883"]
[Result "1-0"]
[Round "01"]
[TimeControl "180+2"]
[Date "2023.05.23"]
[WhiteClock "0:00:57"]
[BlackClock "0:00:02"]

1. e4 {[%clk 0:02:57]}  e6 {[%clk 0:02:58]} 2. d4 {[%clk 0:02:48]}  d5 {[%clk 0:02:58]} 3. Nd2 {[%clk 0:02:47]}  Nf6 {[%clk 0:02:56]} 4. e5 {[%clk 0:02:47]}  Nfd7 {[%clk 0:02:57]} 5. Bd3 {[%clk 0:02:48]}  c5 {[%clk 0:02:57]} 6. c3 {[%clk 0:02:48]}  Nc6 {[%clk 0:02:58]} 7. Ne2 {[%clk 0:02:48]}  cxd4 {[%clk 0:02:36]} 8. cxd4 {[%clk 0:02:49]}  Qb6 {[%clk 0:02:36]} 9. Nf3 {[%clk 0:02:44]}  f6 {[%clk 0:02:36]} 10. exf6 {[%clk 0:02:43]}  Nxf6 {[%clk 0:02:37]} 11. O-O {[%clk 0:02:43]}  Bd6 {[%clk 0:02:38]} 12. Re1 {[%clk 0:02:40]}  O-O {[%clk 0:02:37]} 13. Bf4 {[%clk 0:02:34]}  Bxf4 {[%clk 0:01:58]} 14. Nxf4 {[%clk 0:02:35]}  Ne4 {[%clk 0:01:58]} 15. g3 {[%clk 0:02:07]}  g5 {[%clk 0:00:34]} 16. Bxe4 {[%clk 0:02:03]}  gxf4 {[%clk 0:00:24]} 17. Bd3 {[%clk 0:01:53]}  fxg3 {[%clk 0:00:23]} 18. hxg3 {[%clk 0:01:50]}  e5 {[%clk 0:00:20]} 19. Nxe5 {[%clk 0:01:36]}  Nxd4 {[%clk 0:00:19]} 20. Qh5 {[%clk 0:01:29]}  Bf5 {[%clk 0:00:15]} 21. Bxf5 {[%clk 0:01:27]}  Rxf5 {[%clk 0:00:13]} 22. Qg4+ {[%clk 0:01:25]}  Kh8 {[%clk 0:00:14]} 23. Rad1 {[%clk 0:00:59]}  Re8 {[%clk 0:00:02]} 24. Nf7+ {[%clk 0:00:57]} 1-0


[Site "https://www.chess.com"]